[Event "IV Elllobregat Open Chess Tmnt"]
[Site "Sant Boi de Llobregat, Spain"]
[Date "2023.12.02"]
[Round "3.36"]
[White "Peralta, Fernando"]
[Black "Habans Aguerrea, Javier"]
[Result "1/2-1/2"]
[TimeControl "90min/40moves + 15min/end + 30sec from move 1"]
[WhiteFideId "105309"]
[BlackFideId "24524689"]
[WhiteElo "2580"]
[BlackElo "2345"]

1. d4 {[%clk 01:30:28]} {[%emt 00:00:32]} Nf6 {[%clk 01:30:46]} {[%emt
00:00:14]} 2. c4 {[%clk 01:30:47]} {[%emt 00:00:11]} e6 {[%clk 01:31:06]}
{[%emt 00:00:10]} 3. Nf3 {[%clk 01:30:58]} {[%emt 00:00:19]} d5 {[%clk
01:30:25]} {[%emt 00:01:11]} 4. cxd5 {[%clk 01:31:19]} {[%emt 00:00:09]} exd5
{[%clk 01:30:21]} {[%emt 00:00:34]} 5. Nc3 {[%clk 01:31:44]} {[%emt 00:00:04]}
Bb4 {[%clk 01:30:17]} {[%emt 00:00:35]} 6. Bg5 {[%clk 01:31:41]} {[%emt
00:00:33]} h6 {[%clk 01:30:11]} {[%emt 00:00:35]} 7. Bh4 {[%clk 01:32:07]}
{[%emt 00:00:04]} Bf5 {[%clk 01:30:14]} {[%emt 00:00:27]} 8. Qb3 {[%clk
01:30:28]} {[%emt 00:02:08]} Nc6 {[%clk 01:28:01]} {[%emt 00:02:43]} 9. e3
{[%clk 01:30:37]} {[%emt 00:00:21]} g5 {[%clk 01:22:34]} {[%emt 00:05:57]} 10.
Bg3 {[%clk 01:30:59]} {[%emt 00:00:07]} O-O {[%clk 01:19:52]} {[%emt 00:03:13]}
11. Be2 {[%clk 01:30:45]} {[%emt 00:00:44]} Ne4 {[%clk 01:12:15]} {[%emt
00:08:07]} 12. O-O {[%clk 01:29:25]} {[%emt 00:01:49]} Bxc3 {[%clk 01:08:17]}
{[%emt 00:04:28]} 13. bxc3 {[%clk 01:29:49]} {[%emt 00:00:06]} Na5 {[%clk
01:07:40]} {[%emt 00:01:08]} 14. Qb4 {[%clk 01:27:10]} {[%emt 00:03:09]} b6
{[%clk 01:05:57]} {[%emt 00:02:13]} 15. Rad1 {[%clk 01:27:27]} {[%emt
00:00:13]} Qf6 {[%clk 00:55:28]} {[%emt 00:10:59]} 16. Nd2 {[%clk 01:21:40]}
{[%emt 00:06:17]} Nxg3 {[%clk 00:53:19]} {[%emt 00:02:39]} 17. hxg3 {[%clk
01:21:50]} {[%emt 00:00:20]} Rac8 {[%clk 00:51:12]} {[%emt 00:02:37]} 18. Nb3
{[%clk 01:01:22]} {[%emt 00:20:58]} c5 {[%clk 00:48:55]} {[%emt 00:02:46]} 19.
dxc5 {[%clk 00:47:22]} {[%emt 00:14:30]} Nxb3 {[%clk 00:42:59]} {[%emt
00:06:26]} 20. cxb6 {[%clk 00:45:44]} {[%emt 00:02:08]} Qxc3 {[%clk 00:26:30]}
{[%emt 00:16:59]} 21. Qxb3 {[%clk 00:43:14]} {[%emt 00:03:01]} Qxb3 {[%clk
00:25:59]} {[%emt 00:01:01]} 22. axb3 {[%clk 00:43:38]} {[%emt 00:00:06]} axb6
{[%clk 00:26:24]} {[%emt 00:00:05]} 23. Rxd5 {[%clk 00:42:16]} {[%emt
00:01:51]} Be6 {[%clk 00:26:53]} {[%emt 00:00:01]} 24. Rb5 {[%clk 00:29:17]}
{[%emt 00:13:30]} Rc2 {[%clk 00:18:12]} {[%emt 00:09:10]} 25. Bd1 {[%clk
00:26:19]} {[%emt 00:03:28]} Rb2 {[%clk 00:18:31]} {[%emt 00:00:11]} 26. Rxb6
{[%clk 00:21:54]} {[%emt 00:04:56]} Rd8 {[%clk 00:18:16]} {[%emt 00:00:45]} 27.
Rb4 {[%emt 00:11:10]} Rdd2 {[%clk 00:16:18]} 28. Rd4 {[%clk 00:08:28]} {[%emt
00:05:44]} Rxd4 {[%clk 00:16:25]} {[%emt 00:00:23]} 29. exd4 {[%clk 00:08:55]}
{[%emt 00:00:03]} Bxb3 {[%clk 00:14:43]} {[%emt 00:02:12]} 30. Bf3 {[%clk
00:07:45]} {[%emt 00:01:39]} Kg7 {[%clk 00:10:24]} {[%emt 00:04:50]} 31. g4
{[%clk 00:06:17]} {[%emt 00:01:57]} Rd2 {[%clk 00:07:19]} {[%emt 00:03:35]} 32.
Rb1 {[%clk 00:06:39]} {[%emt 00:00:08]} Be6 {[%clk 00:03:06]} {[%emt 00:04:44]}
33. Rb4 {[%clk 00:06:59]} {[%emt 00:00:10]} h5 {[%clk 00:00:44]} {[%emt
00:02:52]} 34. gxh5 {[%clk 00:06:10]} {[%emt 00:01:18]} g4 {[%clk 00:01:13]}
{[%emt 00:00:01]} 35. d5 {[%clk 00:02:43]} {[%emt 00:03:57]} gxf3 {[%clk
00:01:34]} {[%emt 00:00:09]} 36. dxe6 {[%clk 00:03:10]} {[%emt 00:00:03]} fxe6
{[%clk 00:01:07]} {[%emt 00:00:57]} 37. g4 {[%clk 00:01:16]} {[%emt 00:02:24]}
Kh6 {[%clk 00:01:18]} {[%emt 00:00:19]} 38. Kh2 {[%clk 00:01:25]} {[%emt
00:00:21]} Rxf2+ {[%clk 00:01:47]} {[%emt 00:00:01]} 39. Kg3 {[%clk 00:01:51]}
{[%emt 00:00:04]} Rf1 {[%clk 00:00:44]} {[%emt 00:01:34]} 40. Rb6 {[%clk
00:15:35]} {[%emt 00:01:46]} Kg5 {[%clk 00:15:34]} {[%emt 00:00:40]} 41. Rxe6
{[%clk 00:12:55]} {[%emt 00:03:09]} Rg1+ {[%clk 00:15:56]} {[%emt 00:00:08]} 42.
Kxf3 {[%clk 00:13:13]} {[%emt 00:00:13]} Rg3+ {[%clk 00:16:20]} {[%emt
00:00:05]} 43. Kxg3 {[%clk 00:12:25]} {[%emt 00:00:46]} 1/2-1/2

[Event "IV Elllobregat Open Chess Tmnt"]
[Site "Sant Boi de Llobregat, Spain"]
[Date "2023.12.02"]
[Round "3.37"]
[White "Sosa, Tomas"]
[Black "Rey Martinez, Jaime"]
[Result "1-0"]
[TimeControl "90min/40moves + 15min/end + 30sec from move 1"]
[WhiteFideId "121576"]
[BlackFideId "54549264"]
[WhiteElo "2558"]
[BlackElo "2344"]

1. Nf3 {[%clk 01:22:17]} {[%emt 00:08:37]} c5 {[%clk 01:30:16]} {[%emt
00:00:49]} 2. c4 {[%clk 01:21:58]} {[%emt 00:00:49]} g6 {[%clk 01:29:57]}
{[%emt 00:00:50]} 3. g3 {[%clk 01:22:10]} {[%emt 00:00:17]} Bg7 {[%clk
01:30:00]} {[%emt 00:00:27]} 4. Bg2 {[%clk 01:22:34]} {[%emt 00:00:06]} Nc6
{[%clk 01:30:06]} {[%emt 00:00:24]} 5. Nc3 {[%clk 01:22:37]} {[%emt 00:00:28]}
e6 {[%clk 01:27:59]} {[%emt 00:02:37]} 6. d4 {[%clk 01:22:48]} {[%emt
00:00:19]} cxd4 {[%clk 01:22:46]} {[%emt 00:05:43]} 7. Nb5 {[%clk 01:22:05]}
{[%emt 00:01:13]} d5 {[%clk 01:20:20]} {[%emt 00:02:56]} 8. cxd5 {[%clk
01:21:18]} {[%emt 00:01:17]} Qa5+ {[%clk 01:12:02]} {[%emt 00:08:48]} 9. Nd2
{[%clk 01:21:01]} {[%emt 00:00:46]} Qxb5 {[%clk 01:12:22]} {[%emt 00:00:10]} 10.
a4 {[%clk 01:21:08]} {[%emt 00:00:24]} Qb6 {[%clk 01:07:30]} {[%emt 00:05:22]}
11. dxc6 {[%clk 01:20:44]} {[%emt 00:00:54]} Ne7 {[%clk 00:58:18]} {[%emt
00:09:41]} 12. Nc4 {[%clk 01:10:19]} {[%emt 00:10:55]} Qb4+ {[%clk 00:57:26]}
{[%emt 00:01:22]} 13. Bd2 {[%clk 01:10:27]} {[%emt 00:00:22]} Qxc4 {[%clk
00:57:40]} {[%emt 00:00:17]} 14. cxb7 {[%clk 01:10:51]} {[%emt 00:00:05]} Bxb7
{[%clk 00:57:14]} {[%emt 00:00:57]} 15. Bxb7 {[%clk 01:11:14]} {[%emt
00:00:07]} Rb8 {[%clk 00:57:39]} {[%emt 00:00:05]} 16. Rc1 {[%clk 01:04:47]}
{[%emt 00:06:56]} Qa2 {[%clk 00:57:10]} {[%emt 00:01:00]} 17. Ba6 {[%clk
01:04:53]} {[%emt 00:00:23]} O-O {[%clk 00:54:17]} {[%emt 00:03:22]} 18. b4
{[%clk 01:04:09]} {[%emt 00:01:14]} Qd5 {[%clk 00:53:38]} {[%emt 00:01:10]} 19.
O-O {[%clk 01:03:53]} {[%emt 00:00:46]} Qd6 {[%clk 00:52:53]} {[%emt 00:01:15]}
20. b5 {[%clk 01:03:25]} {[%emt 00:00:58]} Nd5 {[%clk 00:51:32]} {[%emt
00:01:51]} 21. Rc6 {[%clk 01:00:13]} {[%emt 00:03:42]} Qe5 {[%clk 00:47:47]}
{[%emt 00:04:15]} 22. Re1 {[%clk 00:57:32]} {[%emt 00:03:10]} Nc3 {[%clk
00:42:32]} {[%emt 00:05:46]} 23. Qc2 {[%clk 00:42:50]} {[%emt 00:15:12]} Qd5
{[%clk 00:40:59]} {[%emt 00:02:04]} 24. Bxc3 {[%clk 00:41:27]} {[%emt
00:01:53]} dxc3 {[%clk 00:41:24]} {[%emt 00:00:04]} 25. Rd1 {[%clk 00:41:50]}
{[%emt 00:00:07]} Qh5 {[%clk 00:37:56]} {[%emt 00:03:58]} 26. Rc7 {[%clk
00:37:56]} {[%emt 00:04:23]} Rbd8 {[%clk 00:36:18]} {[%emt 00:02:09]} 27. Bb7
{[%clk 00:30:13]} {[%emt 00:08:13]} Qg4 {[%clk 00:28:31]} {[%emt 00:08:17]} 28.
f4 {[%clk 00:26:35]} {[%emt 00:04:08]} e5 {[%clk 00:17:41]} {[%emt 00:11:20]}
29. Rxd8 {[%clk 00:22:59]} {[%emt 00:04:06]} Rxd8 {[%clk 00:17:39]} {[%emt
00:00:33]} 30. Qb3 {[%clk 00:23:23]} {[%emt 00:00:05]} Qe6 {[%clk 00:16:09]}
{[%emt 00:02:00]} 31. Qxe6 {[%clk 00:21:11]} {[%emt 00:02:42]} fxe6 {[%clk
00:16:35]} {[%emt 00:00:04]} 32. Bc8 {[%clk 00:16:21]} {[%emt 00:05:20]} Re8
{[%clk 00:13:31]} {[%emt 00:03:35]} 33. e3 {[%clk 00:14:24]} {[%emt 00:02:26]}
exf4 {[%clk 00:13:31]} {[%emt 00:00:30]} 34. gxf4 {[%clk 00:14:53]} Bf6 {[%clk
00:08:21]} {[%emt 00:05:40]} 35. Bd7 {[%clk 00:13:33]} {[%emt 00:01:50]} Re7
{[%clk 00:08:23]} {[%emt 00:00:28]} 36. Rc8+ {[%clk 00:06:18]} {[%emt
00:07:46]} Kg7 {[%clk 00:08:49]} {[%emt 00:00:04]} 37. Bc6 {[%clk 00:06:40]}
{[%emt 00:00:07]} e5 {[%clk 00:08:51]} {[%emt 00:00:29]} 38. f5 {[%clk
00:05:03]} {[%emt 00:02:06]} e4 {[%clk 00:03:35]} {[%emt 00:05:47]} 39. a5
{[%clk 00:04:37]} {[%emt 00:00:55]} Be5 {[%clk 00:03:01]} {[%emt 00:01:04]} 40.
Bxe4 {[%clk 00:16:54]} {[%emt 00:03:13]} Bc7 {[%clk 00:16:32]} {[%emt
00:01:59]} 41. fxg6 {[%clk 00:13:46]} {[%emt 00:03:37]} hxg6 {[%clk 00:15:42]}
{[%emt 00:01:21]} 42. b6 {[%clk 00:11:17]} {[%emt 00:03:00]} axb6 {[%clk
00:15:22]} {[%emt 00:00:49]} 43. a6 {[%clk 00:11:18]} {[%emt 00:00:29]} Bd6
{[%clk 00:10:13]} {[%emt 00:05:40]} 44. Bd3 {[%clk 00:07:32]} {[%emt 00:04:15]}
Bc5 {[%clk 00:10:14]} {[%emt 00:00:29]} 45. Kf1 {[%clk 00:07:06]} {[%emt
00:00:55]} g5 {[%clk 00:07:22]} {[%emt 00:03:23]} 46. e4 {[%clk 00:03:52]}
{[%emt 00:03:44]} g4 {[%clk 00:05:00]} {[%emt 00:02:52]} 47. e5 {[%clk
00:02:27]} {[%emt 00:01:55]} Kf7 {[%clk 00:02:19]} {[%emt 00:03:11]} 48. Rc6
{[%clk 00:02:11]} {[%emt 00:00:46]} Bd4 {[%clk 00:01:55]} {[%emt 00:00:55]} 49.
Rf6+ {[%emt 00:00:02]} Kg7 {[%clk 00:01:55]} {[%emt 00:00:28]} 50. Rg6+ {[%clk
00:03:00]} {[%emt 00:00:10]} Kf7 {[%clk 00:02:11]} {[%emt 00:00:14]} 51. e6+
{[%clk 00:02:22]} {[%emt 00:01:08]} Kf8 {[%clk 00:02:22]} {[%emt 00:00:19]} 52.
Rxg4 {[%clk 00:02:46]} {[%emt 00:00:06]} Be5 {[%clk 00:02:38]} {[%emt
00:00:14]} 53. Rb4 {[%clk 00:01:41]} {[%emt 00:01:35]} Bxh2 {[%clk 00:02:14]}
{[%emt 00:00:55]} 54. Rxb6 {[%clk 00:02:02]} {[%emt 00:00:09]} Kg7 {[%clk
00:02:26]} {[%emt 00:00:18]} 55. Kg2 {[%clk 00:01:02]} {[%emt 00:01:29]} Be5
{[%clk 00:02:42]} {[%emt 00:00:14]} 56. Kf3 {[%clk 00:01:26]} {[%emt 00:00:06]}
Bd4 {[%clk 00:01:52]} {[%emt 00:01:21]} 57. Rc6 {[%clk 00:01:20]} {[%emt
00:00:35]} Ra7 {[%clk 00:01:27]} {[%emt 00:00:55]} 58. Ke4 {[%clk 00:01:34]}
{[%emt 00:00:17]} Bf6 {[%clk 00:01:54]} {[%emt 00:00:03]} 59. Rb6 {[%clk
00:01:45]} {[%emt 00:00:18]} Bd8 {[%clk 00:02:11]} {[%emt 00:00:14]} 60. Rb7+
{[%clk 00:01:22]} {[%emt 00:00:53]} Rxb7 {[%clk 00:02:36]} {[%emt 00:00:04]} 61.
axb7 {[%clk 00:01:51]} {[%emt 00:00:01]} Bc7 {[%clk 00:02:59]} {[%emt
00:00:07]} 62. Kd5 {[%clk 00:02:13]} {[%emt 00:00:07]} 1-0

[Event "IV Elllobregat Open Chess Tmnt"]
[Site "Sant Boi de Llobregat, Spain"]
[Date "2023.12.02"]
[Round "3.38"]
[White "Arizmendi Martinez, Julen Luis"]
[Black "Formento, Paolo"]
[Result "1-0"]
[TimeControl "90min/40moves + 15min/end + 30sec from move 1"]
[WhiteFideId "2205092"]
[BlackFideId "861162"]
[WhiteElo "2525"]
[BlackElo "2343"]

1. e4 {[%clk 01:30:54]} {[%emt 00:00:05]} e6 {[%clk 01:30:19]} {[%emt
00:00:42]} 2. d4 {[%clk 01:29:53]} {[%emt 00:01:31]} d5 {[%clk 01:30:44]}
{[%emt 00:00:05]} 3. Nd2 {[%clk 01:26:03]} {[%emt 00:04:20]} c5 {[%clk
01:30:55]} {[%emt 00:00:20]} 4. Ngf3 {[%clk 01:25:02]} {[%emt 00:01:30]} cxd4
{[%clk 01:31:07]} {[%emt 00:00:19]} 5. Nxd4 {[%clk 01:24:31]} {[%emt 00:01:01]}
Nf6 {[%clk 01:31:20]} {[%emt 00:00:17]} 6. exd5 {[%clk 01:19:07]} {[%emt
00:05:54]} Nxd5 {[%clk 01:31:43]} {[%emt 00:00:07]} 7. c3 {[%clk 01:10:15]}
{[%emt 00:09:21]} Be7 {[%clk 01:31:47]} {[%emt 00:00:26]} 8. N2f3 {[%clk
01:05:02]} {[%emt 00:05:43]} a6 {[%clk 01:25:46]} {[%emt 00:06:32]} 9. Bd3
{[%clk 00:56:10]} {[%emt 00:09:21]} O-O {[%clk 01:09:30]} {[%emt 00:16:46]} 10.
O-O {[%clk 00:55:34]} {[%emt 00:01:06]} Qc7 {[%clk 01:02:01]} {[%emt 00:07:59]}
11. Re1 {[%clk 00:49:45]} {[%emt 00:06:19]} Nd7 {[%clk 00:58:21]} {[%emt
00:04:10]} 12. Bc2 {[%clk 00:40:29]} {[%emt 00:09:46]} N7f6 {[%clk 00:45:23]}
{[%emt 00:13:28]} 13. Ne5 {[%clk 00:23:15]} {[%emt 00:17:44]} Bd6 {[%clk
00:40:51]} {[%emt 00:05:03]} 14. Ndf3 {[%clk 00:23:26]} {[%emt 00:00:18]} Rd8
{[%clk 00:22:00]} {[%emt 00:19:21]} 15. Qd4 {[%clk 00:18:52]} {[%emt 00:05:04]}
Ne7 {[%clk 00:19:53]} {[%emt 00:02:37]} 16. Qh4 {[%clk 00:17:39]} {[%emt
00:01:42]} Ng6 {[%clk 00:19:02]} {[%emt 00:01:22]} 17. Bxg6 {[%clk 00:16:19]}
{[%emt 00:01:50]} hxg6 {[%clk 00:18:53]} {[%emt 00:00:39]} 18. Bg5 {[%clk
00:14:29]} {[%emt 00:02:20]} Be7 {[%clk 00:16:24]} {[%emt 00:02:59]} 19. Re3
{[%clk 00:14:31]} {[%emt 00:00:28]} Re8 {[%clk 00:07:40]} {[%emt 00:09:15]} 20.
Rae1 {[%clk 00:06:27]} {[%emt 00:08:33]} Nh7 {[%clk 00:06:29]} {[%emt
00:01:41]} 21. Nxf7 {[%clk 00:05:43]} {[%emt 00:01:13]} Bc5 {[%clk 00:06:38]}
{[%emt 00:00:22]} 22. N3e5 {[%clk 00:05:46]} {[%emt 00:00:27]} Bxe3 {[%clk
00:06:29]} {[%emt 00:00:39]} 23. Rxe3 {[%clk 00:06:14]} {[%emt 00:00:02]} 1-0

[Event "IV Elllobregat Open Chess Tmnt"]
[Site "Sant Boi de Llobregat, Spain"]
[Date "2023.12.02"]
[Round "3.39"]
[White "Van Dael, Siem"]
[Black "Sankalp, Gupta"]
[Result "1/2-1/2"]
[TimeControl "90min/40moves + 15min/end + 30sec from move 1"]
[WhiteFideId "1049771"]
[BlackFideId "5097010"]
[WhiteElo "2367"]
[BlackElo "2523"]

1. e4 {[%clk 01:30:57]} {[%emt 00:00:02]} c5 {[%clk 01:30:24]} {[%emt
00:00:37]} 2. Nf3 {[%clk 01:31:20]} {[%emt 00:00:06]} d6 {[%clk 01:30:51]}
{[%emt 00:00:03]} 3. d4 {[%clk 01:31:43]} {[%emt 00:00:07]} cxd4 {[%clk
01:31:17]} {[%emt 00:00:04]} 4. Nxd4 {[%clk 01:32:08]} {[%emt 00:00:06]} Nf6
{[%clk 01:31:43]} {[%emt 00:00:04]} 5. Nc3 {[%clk 01:32:30]} {[%emt 00:00:08]}
a6 {[%clk 01:32:10]} {[%emt 00:00:02]} 6. Be3 {[%clk 01:32:25]} {[%emt
00:00:35]} e5 {[%clk 01:32:33]} {[%emt 00:00:08]} 7. Nb3 {[%clk 01:32:49]}
{[%emt 00:00:05]} Be7 {[%clk 01:32:54]} {[%emt 00:00:09]} 8. f3 {[%clk
01:33:13]} {[%emt 00:00:06]} Be6 {[%clk 01:33:19]} {[%emt 00:00:05]} 9. Qd2
{[%clk 01:33:38]} {[%emt 00:00:05]} h5 {[%clk 01:33:38]} {[%emt 00:00:11]} 10.
O-O-O {[%clk 01:31:59]} {[%emt 00:02:09]} Nbd7 {[%clk 01:33:45]} {[%emt
00:00:23]} 11. Kb1 {[%clk 01:31:46]} {[%emt 00:00:43]} Rc8 {[%clk 01:33:42]}
{[%emt 00:00:33]} 12. Bd3 {[%clk 01:31:31]} {[%emt 00:00:45]} b5 {[%clk
01:33:28]} {[%emt 00:00:44]} 13. h3 {[%clk 01:31:46]} {[%emt 00:00:14]} h4
{[%clk 01:33:48]} {[%emt 00:00:11]} 14. f4 {[%clk 01:32:06]} {[%emt 00:00:10]}
Nh5 {[%clk 01:33:39]} {[%emt 00:00:39]} 15. fxe5 {[%clk 01:23:58]} {[%emt
00:08:38]} Nxe5 {[%clk 01:32:12]} {[%emt 00:01:58]} 16. Nd5 {[%clk 01:23:54]}
{[%emt 00:00:34]} Bxd5 {[%clk 01:18:32]} {[%emt 00:14:10]} 17. exd5 {[%clk
01:24:16]} {[%emt 00:00:07]} Ng3 {[%clk 01:18:55]} {[%emt 00:00:06]} 18. Rhe1
{[%clk 01:23:23]} {[%emt 00:01:24]} O-O {[%clk 01:19:09]} {[%emt 00:00:16]} 19.
Nd4 {[%clk 01:20:20]} {[%emt 00:03:34]} Bf6 {[%clk 01:17:48]} {[%emt 00:01:50]}
20. Bf4 {[%clk 01:14:20]} {[%emt 00:06:30]} Rc5 {[%clk 01:08:46]} {[%emt
00:09:32]} 21. Nc6 {[%clk 01:11:34]} {[%emt 00:03:16]} Nxc6 {[%clk 01:06:11]}
{[%emt 00:03:06]} 22. dxc6 {[%clk 01:11:56]} {[%emt 00:00:07]} Rxc6 {[%clk
01:05:36]} {[%emt 00:01:06]} 23. Bxg3 {[%clk 01:05:45]} {[%emt 00:06:40]} hxg3
{[%clk 01:06:02]} {[%emt 00:00:04]} 24. Be4 {[%clk 01:05:54]} {[%emt 00:00:21]}
Rc4 {[%clk 00:43:18]} {[%emt 00:23:14]} 25. Qxd6 {[%clk 00:52:29]} {[%emt
00:13:55]} Qa5 {[%clk 00:43:37]} {[%emt 00:00:11]} 26. Bd5 {[%clk 00:39:03]}
{[%emt 00:13:56]} Qb4 {[%clk 00:34:29]} {[%emt 00:09:38]} 27. Qxb4 {[%clk
00:38:06]} {[%emt 00:01:28]} Rxb4 {[%clk 00:34:57]} {[%emt 00:00:02]} 28. Bb3
{[%clk 00:33:21]} {[%emt 00:05:14]} a5 {[%clk 00:34:23]} {[%emt 00:01:05]} 29.
Re3 {[%clk 00:23:49]} {[%emt 00:10:01]} a4 {[%clk 00:33:14]} {[%emt 00:01:39]}
30. a3 {[%clk 00:19:19]} {[%emt 00:05:00]} Rf4 {[%clk 00:29:33]} {[%emt
00:04:10]} 31. Bd5 {[%clk 00:19:26]} {[%emt 00:00:24]} b4 {[%clk 00:26:33]}
{[%emt 00:03:31]} 32. Rxg3 {[%clk 00:15:32]} {[%emt 00:04:24]} bxa3 {[%clk
00:20:06]} {[%emt 00:06:57]} 33. Rxa3 {[%clk 00:14:59]} {[%emt 00:01:02]} Rb8
{[%clk 00:20:29]} {[%emt 00:00:07]} 34. b3 {[%clk 00:13:41]} {[%emt 00:01:49]}
Rd8 {[%clk 00:20:02]} {[%emt 00:00:57]} 35. bxa4 {[%clk 00:05:11]} {[%emt
00:09:00]} Rb4+ {[%clk 00:20:21]} {[%emt 00:00:10]} 36. Rb3 {[%clk 00:05:35]}
{[%emt 00:00:06]} Rxa4 {[%clk 00:20:46]} {[%emt 00:00:05]} 37. c3 {[%clk
00:04:41]} {[%emt 00:01:24]} Ra5 {[%clk 00:20:38]} {[%emt 00:00:38]} 38. Bf3
{[%clk 00:04:53]} {[%emt 00:00:18]} Rxd1+ {[%clk 00:19:39]} {[%emt 00:01:29]}
39. Bxd1 {[%clk 00:05:18]} {[%emt 00:00:05]} Kf8 {[%clk 00:20:02]} {[%emt
00:00:07]} 40. Bf3 {[%clk 00:20:08]} {[%emt 00:00:40]} Rc5 {[%clk 00:28:27]}
{[%emt 00:07:04]} 41. Kc2 {[%clk 00:20:27]} {[%emt 00:00:11]} Ke7 {[%clk
00:28:52]} {[%emt 00:00:05]} 42. Kd3 {[%clk 00:20:40]} {[%emt 00:00:17]} Be5
{[%clk 00:29:14]} {[%emt 00:00:08]} 43. c4 {[%clk 00:20:37]} {[%emt 00:00:34]}
Rc7 {[%clk 00:23:58]} {[%emt 00:05:46]} 44. Ra3 {[%clk 00:19:50]} {[%emt
00:01:16]} Bd6 {[%clk 00:24:03]} {[%emt 00:00:26]} 45. Ra6 {[%clk 00:18:40]}
{[%emt 00:01:40]} Bc5 {[%clk 00:23:06]} {[%emt 00:01:27]} 46. Bd5 {[%clk
00:15:43]} {[%emt 00:03:27]} g6 {[%clk 00:20:07]} {[%emt 00:03:29]} 47. Ke4
{[%clk 00:15:31]} {[%emt 00:00:41]} Bf2 {[%clk 00:18:46]} {[%emt 00:01:51]} 48.
Ra1 {[%clk 00:14:39]} {[%emt 00:01:22]} Bc5 {[%clk 00:17:29]} {[%emt 00:01:48]}
49. Ra6 {[%clk 00:13:41]} {[%emt 00:01:28]} Bf2 {[%clk 00:17:47]} {[%emt
00:00:13]} 50. g4 {[%clk 00:13:14]} {[%emt 00:00:56]} Kf8 {[%clk 00:10:58]}
{[%emt 00:07:19]} 51. Rf6 {[%clk 00:10:46]} {[%emt 00:02:58]} Re7+ {[%clk
00:10:41]} {[%emt 00:00:47]} 52. Kd3 {[%clk 00:10:48]} {[%emt 00:00:28]} Bg1
{[%clk 00:10:16]} {[%emt 00:00:55]} 53. Rf3 {[%clk 00:06:30]} {[%emt 00:04:47]}
Kg7 {[%clk 00:09:47]} {[%emt 00:00:59]} 54. h4 {[%clk 00:04:44]} {[%emt
00:02:17]} f6 {[%clk 00:09:06]} {[%emt 00:01:11]} 55. Rf1 {[%clk 00:04:18]}
{[%emt 00:00:56]} Bc5 {[%clk 00:08:40]} {[%emt 00:00:55]} 56. Rb1 {[%clk
00:02:06]} {[%emt 00:02:43]} Bf2 {[%clk 00:06:53]} {[%emt 00:02:17]} 57. h5
{[%clk 00:01:57]} {[%emt 00:00:39]} gxh5 {[%clk 00:07:03]} {[%emt 00:00:20]} 58.
gxh5 {[%clk 00:02:16]} {[%emt 00:00:10]} Re5 {[%clk 00:07:28]} {[%emt
00:00:05]} 59. Rb7+ {[%clk 00:01:19]} {[%emt 00:01:28]} Kh6 {[%clk 00:07:55]}
{[%emt 00:00:03]} 60. Rf7 {[%clk 00:01:40]} {[%emt 00:00:08]} f5 {[%clk
00:08:04]} {[%emt 00:00:21]} 61. Rf6+ {[%clk 00:00:41]} {[%emt 00:01:29]} Kxh5
{[%clk 00:08:32]} {[%emt 00:00:03]} 1/2-1/2